fUST/lending_fUST_20250831
["ID","MTS","AMOUNT","RATE_DAILY","PERIOD"]
[382493306,1756647058411,-500.0,0.00018073,2]
[382493308,1756647058420,-500.0,0.00018073,2]
[382493309,1756647058430,-168.0,0.00018083,2]
[382493311,1756647058439,-470.0,0.00018086,2]
[382493313,1756647058449,-151.0,0.000181,2]
[382493315,1756647058458,-1833.13346003,0.0001814,2]
[382493317,1756647058468,-168.0,0.00018141,2]
[382493319,1756647058478,-8000.0,0.00018166,2]
[382493321,1756647058487,-975.0,0.0001819,2]
[382493323,1756647058500,-2152.0,0.0001819,2]
[382493325,1756647058510,-632.0,0.0001819,2]
[382493327,1756647058519,-551.732,0.0001819,2]
[382493329,1756647058528,-422.354,0.0001819,2]
[382493331,1756647058539,-151.0,0.000182,2]
[382493333,1756647058548,-151.0,0.000182,2]
[382493335,1756647058558,-14603.14603986,0.00018222,2]
[382493337,1756647058573,-160.0,0.00018239,2]
[382493339,1756647058584,-156.907314,0.00018255,15]
[382493341,1756647058593,-1230.0,0.00018256,2]
[382493343,1756647058603,-156.907314,0.00018257,10]
[382493345,1756647058613,-8000.0,0.00018272,2]
[382493347,1756647058622,-916.14,0.00018273,2]
[382493349,1756647058631,-1000.0,0.00018321,2]
[382493351,1756647058641,-476.20108331,0.00018321,2]
[382493353,1756647058651,-1000.0,0.00018321,2]
[382493355,1756647058660,-1000.0,0.00018321,2]
[382493357,1756647058670,-432.56640123,0.00018321,2]
[382493359,1756647058680,-1015.26951269,0.00018321,2]
[382493361,1756647058689,-1000.0,0.00018321,2]
[382493363,1756647058698,-1000.0,0.00018321,2]
[382493365,1756647058708,-629.53150776,0.00018321,2]
[382493367,1756647058718,-1079.34668092,0.00018321,2]
[382493369,1756647058727,-1000.0,0.00018321,2]
[382493371,1756647058737,-1000.0,0.00018321,2]
[382493373,1756647058747,-1000.0,0.00018321,2]
[382493375,1756647058756,-1000.0,0.00018321,2]
[382493377,1756647058766,-1002.21089762,0.00018321,2]
[382493379,1756647058776,-1000.0,0.00018321,2]
[382493381,1756647058785,-1000.0,0.00018321,2]
[382493383,1756647058794,-1000.0,0.00018321,2]
[382493385,1756647058804,-1000.0,0.00018321,2]
[382493387,1756647058813,-1000.0,0.00018321,2]
[382493389,1756647058823,-1000.0,0.00018321,2]
[382493391,1756647058832,-1000.0,0.00018321,2]
[382493394,1756647058842,-986.9843952,0.00018321,2]
[382493396,1756647058851,-510.94333666,0.00018321,2]
[382493398,1756647058861,-403.58140753,0.00018321,2]
[382493400,1756647058871,-1000.0,0.00018321,2]
[382493402,1756647058880,-1000.0,0.00018321,2]
[382493404,1756647058891,-1000.0,0.00018321,2]
[382493406,1756647058900,-504.8416873,0.00018321,2]
[382493408,1756647058909,-1000.0,0.00018321,2]
[382493410,1756647058919,-501.4016472,0.00018321,2]
[382493412,1756647058928,-1000.0,0.00018321,2]
[382493414,1756647058939,-281.154866,0.00018321,2]
[382493416,1756647058948,-193.694951,0.00018321,2]
[382493418,1756647058958,-151.0,0.00018321,2]
[382493420,1756647058968,-402.698755,0.00018321,2]
[382493422,1756647058977,-402.698755,0.00018321,2]
[382493424,1756647058987,-402.698755,0.00018321,2]
[382493426,1756647058996,-1397.52,0.00018322,2]
[382493428,1756647059006,-480.0,0.00018322,2]
[382493430,1756647059015,-480.0,0.00018322,2]
[382493432,1756647059026,-639.49,0.00018322,2]
[382493434,1756647059036,-507.6,0.00018322,2]
[382493436,1756647059047,-480.0,0.00018322,2]
[382493438,1756647059056,-480.0,0.00018322,2]
[382493440,1756647059065,-480.0,0.00018322,2]
[382493442,1756647059075,-480.0,0.00018322,2]
[382493444,1756647059084,-1104.52,0.00018322,2]
[382493446,1756647059093,-480.0,0.00018322,2]
[382493448,1756647059103,-480.0,0.00018322,2]
[382493450,1756647059113,-767.06,0.00018322,2]
[382493452,1756647059122,-480.0,0.00018322,2]
[382493454,1756647059132,-480.0,0.00018322,2]
[382493456,1756647059141,-480.0,0.00018322,2]
[382493458,1756647059151,-480.0,0.00018322,2]
[382493460,1756647059161,-480.0,0.00018322,2]
[382493462,1756647059170,-480.0,0.00018322,2]
[382493464,1756647059179,-480.0,0.00018322,2]
[382493466,1756647059188,-920.69,0.00018322,2]
[382493468,1756647059198,-822.59,0.00018322,2]
[382493469,1756647059207,-200.0,0.00018322,3]
[382493472,1756647059217,-200.0,0.00018322,3]
[382493473,1756647059226,-200.0,0.00018322,3]
[382493475,1756647059236,-200.0,0.00018322,3]
[382493477,1756647059245,-200.0,0.00018322,3]
[382493479,1756647059255,-480.0,0.00018322,2]
[382493481,1756647059265,-587.38,0.00018322,2]
[382493483,1756647059275,-1229.77,0.00018322,2]
[382493485,1756647059284,-526.92,0.00018322,2]
[382493487,1756647059294,-480.0,0.00018322,2]
[382493489,1756647059304,-992.66,0.00018322,2]
[382493491,1756647059314,-923.58,0.00018322,2]
[382493493,1756647059323,-1103.86,0.00018322,2]
[382493496,1756647059334,-496.53,0.00018322,2]
[382493498,1756647059344,-480.0,0.00018322,2]
[382493500,1756647059354,-646.75,0.00018322,2]
[382493502,1756647059364,-480.0,0.00018322,2]
[382493504,1756647059374,-1041.77,0.00018322,2]
[382493506,1756647059383,-1171.4,0.00018322,2]
[382493508,1756647059393,-480.0,0.00018322,2]
[382493509,1756647059402,-855.65,0.00018322,2]
[382493511,1756647059411,-778.0,0.00018322,2]
[382493513,1756647059422,-480.0,0.00018322,2]
[382493515,1756647059431,-480.0,0.00018322,2]
[382493517,1756647059441,-480.0,0.00018322,2]
[382493519,1756647059451,-2071.86,0.00018322,2]
[382493521,1756647059461,-480.0,0.00018322,2]
[382493524,1756647059471,-480.0,0.00018322,2]
[382493526,1756647059480,-601.76,0.00018322,2]
[382493527,1756647059490,-480.0,0.00018322,2]
[382493529,1756647059501,-569.85,0.00018322,2]
[382493531,1756647059510,-480.0,0.00018322,2]
[382493533,1756647059520,-723.21,0.00018322,2]
[382493535,1756647059530,-480.0,0.00018322,2]
[382493537,1756647059539,-546.59,0.00018322,2]
[382493539,1756647059549,-1578.77,0.00018322,2]
[382493541,1756647059559,-151.0,0.00018322,2]
[382493543,1756647059569,-151.0,0.00018322,2]
[382493545,1756647059579,-583.68,0.00018322,2]
[382493547,1756647059588,-526.87,0.00018322,2]
[382493549,1756647059598,-480.0,0.00018322,2]
[382493551,1756647059608,-480.0,0.00018322,2]
[382493553,1756647059618,-551.65,0.00018322,2]
[382493555,1756647059628,-1550.12,0.00018322,2]
[382493557,1756647059638,-151.0,0.00018322,2]
[382493559,1756647059648,-151.0,0.00018322,2]
[382493561,1756647059658,-480.0,0.00018322,2]
[382493563,1756647059667,-480.0,0.00018322,2]
[382493565,1756647059676,-980.61,0.00018322,2]
[382493567,1756647059687,-480.0,0.00018322,2]
[382493569,1756647059697,-480.0,0.00018322,2]
[382493571,1756647059707,-480.0,0.00018322,2]
[382493573,1756647059716,-1562.44,0.00018322,2]
[382493575,1756647059725,-480.0,0.00018322,2]
[382493577,1756647059734,-627.45,0.00018322,2]
[382493579,1756647059743,-480.0,0.00018322,2]
[382493581,1756647059753,-885.22,0.00018322,2]
[382493583,1756647059763,-480.0,0.00018322,2]
[382493585,1756647059772,-2638.76,0.00018322,2]
[382493587,1756647059783,-480.0,0.00018322,2]
[382493589,1756647059792,-480.0,0.00018322,2]
[382493591,1756647059802,-480.0,0.00018322,2]
[382493593,1756647059811,-650.9,0.00018322,2]
[382493595,1756647059820,-480.0,0.00018322,2]
[382493597,1756647059830,-480.0,0.00018322,2]
[382493599,1756647059839,-1949.26,0.00018322,2]
[382493601,1756647059849,-480.0,0.00018322,2]
[382493603,1756647059860,-1282.96,0.00018322,2]
[382493605,1756647059870,-480.0,0.00018322,2]
[382493607,1756647059879,-480.0,0.00018322,2]
[382493609,1756647059889,-480.0,0.00018322,2]
[382493611,1756647059900,-1316.81,0.00018322,2]
[382493613,1756647059910,-480.0,0.00018322,2]
[382493615,1756647059919,-1679.73,0.00018322,2]
[382493617,1756647059929,-180.25310697,0.00018322,2]
[382493619,1756647059938,-1672.43,0.00018322,2]
[382493621,1756647059947,-534.35,0.00018322,2]
[382493623,1756647059957,-817.56,0.00018322,2]
[382493625,1756647059967,-1739.39,0.00018322,2]
[382493627,1756647059977,-700.55,0.00018322,2]
[382493629,1756647059986,-480.0,0.00018322,2]
[382493631,1756647059996,-1368.71,0.00018322,2]
[382493633,1756647060006,-480.0,0.00018322,2]
[382493635,1756647060015,-480.0,0.00018322,2]
[382493637,1756647060025,-480.0,0.00018322,2]
[382493639,1756647060036,-480.0,0.00018322,2]
[382493642,1756647060046,-506.66,0.00018322,2]
[382493644,1756647060056,-480.0,0.00018322,2]
[382493646,1756647060066,-495.7,0.00018322,2]
[382493648,1756647060076,-506.81,0.00018322,2]
[382493650,1756647060086,-480.0,0.00018322,2]
[382493652,1756647060096,-613.0,0.00018322,2]
[382493654,1756647060106,-480.0,0.00018322,2]
[382493656,1756647060115,-480.0,0.00018322,2]
[382493658,1756647060126,-480.0,0.00018322,2]
[382493660,1756647060135,-852.07,0.00018322,2]
[382493662,1756647060145,-480.0,0.00018322,2]
[382493664,1756647060155,-480.0,0.00018322,2]
[382493666,1756647060165,-813.4,0.00018322,2]
[382493669,1756647060175,-1394.45,0.00018322,2]
[382493671,1756647060185,-480.0,0.00018322,2]
[382493672,1756647060195,-815.7,0.00018322,2]
[382493675,1756647060205,-665.04,0.00018322,2]
[382493677,1756647060215,-576.54,0.00018322,2]
[382493679,1756647060225,-1639.72,0.00018322,2]
[382493681,1756647060235,-780.26,0.00018322,2]
[382493683,1756647060246,-789.17,0.00018322,2]
[382493685,1756647060255,-480.0,0.00018322,2]
[382493687,1756647060266,-480.0,0.00018322,2]
[382493689,1756647060275,-480.0,0.00018322,2]
[382493691,1756647060285,-480.0,0.00018322,2]
[382493693,1756647060294,-480.0,0.00018322,2]
[382493695,1756647060304,-491.82,0.00018322,2]
[382493697,1756647060313,-480.0,0.00018322,2]
[382493699,1756647060323,-566.36,0.00018322,2]
[382493701,1756647060333,-3774.76,0.00018322,2]
[382493703,1756647060343,-1414.78,0.00018322,2]
[382493705,1756647060352,-691.26,0.00018322,2]
[382493707,1756647060363,-1344.11,0.00018322,2]
[382493709,1756647060372,-988.41,0.00018322,2]
[382493711,1756647060382,-568.19,0.00018322,2]
[382493713,1756647060392,-1739.22,0.00018322,2]
[382493715,1756647060401,-372.78034639,0.00018322,2]
[382493717,1756647060411,-480.0,0.00018322,2]
[382493720,1756647060421,-1231.58,0.00018322,2]
[382493727,1756647060431,-1431.09,0.00018322,2]
[382493729,1756647060490,-763.56,0.00018322,2]
[382493731,1756647060503,-1121.78,0.00018322,2]
[382493733,1756647060513,-480.0,0.00018322,2]
[382493735,1756647060522,-480.0,0.00018322,2]
[382493737,1756647060532,-1501.97,0.00018322,2]
[382493740,1756647060542,-701.5,0.00018322,2]
[382493742,1756647060554,-1504.03,0.00018322,2]
[382493744,1756647060563,-361.58620343,0.00018322,2]
[382493746,1756647060574,-1256.06,0.00018322,2]
[382493748,1756647060584,-1006.65,0.00018322,2]
[382493750,1756647060593,-768.17,0.00018322,2]
[382493752,1756647060603,-1655.5,0.00018322,2]
[382493754,1756647060613,-974.84,0.00018322,2]
[382493756,1756647060623,-480.0,0.00018322,2]
[382493758,1756647060633,-480.0,0.00018322,2]
[382493760,1756647060642,-1142.48,0.00018322,2]
[382493762,1756647060652,-1254.67,0.00018322,2]
[382493763,1756647060661,-1177.69,0.00018322,2]
[382493764,1756647060670,-812.48,0.00018322,2]
[382493765,1756647060679,-2087.93,0.00018322,2]
[382493766,1756647060688,-1574.34,0.00018322,2]
[382493767,1756647060698,-480.0,0.00018322,2]
[382493768,1756647060707,-1714.83,0.00018322,2]
[382493769,1756647060716,-922.16,0.00018322,2]
[382493770,1756647060725,-871.66,0.00018322,2]
[382493771,1756647060735,-543.84,0.00018322,2]
[382493772,1756647060744,-1262.08,0.00018322,2]
[382493773,1756647060754,-1671.95,0.00018322,2]
[382493774,1756647060763,-1725.24,0.00018322,2]
[382493776,1756647060773,-1388.54,0.00018322,2]
[382493778,1756647060782,-480.0,0.00018322,2]
[382493780,1756647060792,-2190.56,0.00018322,2]
[382493782,1756647060802,-480.0,0.00018322,2]
[382493784,1756647060812,-6708.4,0.00018322,2]
[382493786,1756647060821,-872.56,0.00018322,2]
[382493788,1756647060831,-480.0,0.00018322,2]
[382493790,1756647060841,-515.52,0.00018322,2]
[382493792,1756647060851,-1301.33,0.00018322,2]
[382493794,1756647060861,-480.0,0.00018322,2]
[382493796,1756647060871,-573.09,0.00018322,2]
[382493798,1756647060881,-697.46,0.00018322,2]
[382493800,1756647060892,-480.0,0.00018322,2]
[382493802,1756647060901,-1740.3,0.00018322,2]
[382493804,1756647060911,-480.0,0.00018322,2]
[382493806,1756647060921,-408.76768059,0.00018322,2]
[382493808,1756647060931,-3804.23,0.00018322,2]
[382493810,1756647060941,-2137.77,0.00018322,2]
[382493813,1756647060951,-1672.17,0.00018322,2]
[382493815,1756647060961,-300.32075337,0.00018322,2]
[382493817,1756647060972,-1536.51,0.00018322,2]
[382493819,1756647060982,-6503.61,0.00018322,2]
[382493821,1756647060991,-3134.13,0.00018322,2]
[382493823,1756647061002,-480.0,0.00018322,2]
[382493825,1756647061012,-673.88,0.00018322,2]
[382493827,1756647061022,-480.0,0.00018322,2]
[382493829,1756647061031,-480.0,0.00018322,2]
[382493831,1756647061041,-480.0,0.00018322,2]
[382493833,1756647061052,-625.05,0.00018322,2]
[382493835,1756647061062,-480.0,0.00018322,2]
[382493837,1756647061071,-4231.94,0.00018322,2]
[382493839,1756647061081,-480.0,0.00018322,2]
[382493842,1756647061092,-576.88,0.00018322,2]
[382493843,1756647061101,-1268.44,0.00018322,2]
[382493846,1756647061112,-480.0,0.00018322,2]
[382493848,1756647061122,-1944.73,0.00018322,2]
[382493850,1756647061131,-1640.63,0.00018322,2]
[382493852,1756647061141,-1962.54,0.00018322,2]
[382493854,1756647061151,-480.0,0.00018322,2]
[382493856,1756647061160,-1769.05,0.00018322,2]
[382493858,1756647061170,-763.56,0.00018322,2]
[382493860,1756647061180,-2342.59,0.00018322,2]
[382493862,1756647061190,-480.0,0.00018322,2]
[382493864,1756647061200,-710.16,0.00018322,2]
[382493866,1756647061210,-1568.51,0.00018322,2]
[382493868,1756647061221,-5147.9,0.00018322,2]
[382493870,1756647061231,-2340.52,0.00018322,2]
[382493872,1756647061240,-720.8,0.00018322,2]
[382493874,1756647061250,-1428.81,0.00018322,2]
[382493876,1756647061259,-480.0,0.00018322,2]
[382493878,1756647061269,-480.0,0.00018322,2]
[382493880,1756647061278,-480.0,0.00018322,2]
[382493882,1756647061287,-497.22,0.00018322,2]
[382493885,1756647061297,-1777.93,0.00018322,2]
[382493887,1756647061306,-492.56,0.00018322,2]
[382493888,1756647061316,-677.0,0.00018322,2]
[382493891,1756647061325,-1324.07,0.00018322,2]
[382493892,1756647061335,-480.0,0.00018322,2]
[382493894,1756647061344,-810.21,0.00018322,2]
[382493897,1756647061354,-1352.93,0.00018322,2]
[382493899,1756647061364,-590.8,0.00018322,2]
[382493901,1756647061374,-1979.18,0.00018322,2]
[382493903,1756647061383,-754.89,0.00018322,2]
[382493905,1756647061393,-480.0,0.00018322,2]
[382493907,1756647061402,-613.78,0.00018322,2]
[382493909,1756647061413,-1178.26,0.00018322,2]
[382493911,1756647061423,-8621.65,0.00018322,2]
[382493913,1756647061433,-1122.41,0.00018322,2]
[382493915,1756647061442,-1079.68,0.00018322,2]
[382493917,1756647061451,-480.0,0.00018322,2]
[382493919,1756647061462,-8229.75,0.00018322,2]
[382493921,1756647061472,-514.99,0.00018322,2]
[382493923,1756647061482,-490.2,0.00018322,2]
[382493925,1756647061492,-487.15,0.00018322,2]
[382493927,1756647061506,-480.0,0.00018322,2]
[382493929,1756647061516,-480.0,0.00018322,2]
[382493931,1756647061527,-1143.51,0.00018322,2]
[382493933,1756647061536,-2426.95,0.00018322,2]
[382493935,1756647061546,-480.0,0.00018322,2]
[382493938,1756647061556,-532.6,0.00018322,2]
[382493940,1756647061566,-4121.24,0.00018322,2]
[382493942,1756647061575,-2554.75,0.00018322,2]
[382493944,1756647061585,-599.00710125,0.00018322,2]
[382493946,1756647061595,-768.31,0.00018322,2]
[382493948,1756647061606,-1669.25,0.00018322,2]
[382493950,1756647061617,-484.98,0.00018322,2]
[382493952,1756647061627,-2559.06,0.00018322,2]
[382493954,1756647061637,-674.79,0.00018322,2]
[382493956,1756647061647,-480.0,0.00018322,2]
[382493959,1756647061657,-1726.42,0.00018322,2]
[382493961,1756647061667,-925.24,0.00018322,2]
[382493963,1756647061677,-1003.15,0.00018322,2]
[382493965,1756647061687,-480.0,0.00018322,2]
[382493967,1756647061697,-2911.1,0.00018322,2]
[382493969,1756647061707,-1653.85,0.00018322,2]
[382493971,1756647061719,-1224.72,0.00018322,2]
[382493973,1756647061728,-480.0,0.00018322,2]
[382493976,1756647061739,-480.0,0.00018322,2]
[382493978,1756647061749,-481.86,0.00018322,2]
[382493980,1756647061759,-775.67,0.00018322,2]
[382493982,1756647061769,-658.22,0.00018322,2]
[382493984,1756647061778,-1098.87,0.00018322,2]
[382493986,1756647061788,-500.0,0.00018323,2]
[382493988,1756647061798,-500.0,0.00018323,2]
[382493990,1756647061808,-500.0,0.00018323,2]
[382493992,1756647061819,-1542.0,0.00018323,2]
[382493994,1756647061829,-500.0,0.00018323,2]
[382493996,1756647061839,-151.0,0.00018323,2]
[382493999,1756647061850,-204.64224544,0.00018323,2]
[382494001,1756647061859,-500.0,0.00018323,2]
[382494003,1756647061870,-248.69622921,0.00018323,2]
[382494005,1756647061879,-744.44,0.00018323,2]
[382494007,1756647061891,-596.28,0.00018323,2]
[382494009,1756647061901,-480.0,0.00018323,2]
[382494011,1756647061911,-480.0,0.00018323,2]
[382494013,1756647061920,-480.0,0.00018323,2]
[382494015,1756647061930,-480.0,0.00018323,2]
[382494017,1756647061939,-480.0,0.00018323,2]
[382494019,1756647061949,-480.0,0.00018323,2]
[382494021,1756647061959,-480.0,0.00018323,2]
[382494023,1756647061968,-480.0,0.00018323,2]
[382494026,1756647061980,-480.0,0.00018323,2]
[382494028,1756647061990,-1771.78,0.00018323,2]
[382494030,1756647062000,-480.0,0.00018323,2]
[382494032,1756647062010,-411.61085373,0.00018323,2]
[382494034,1756647062020,-347.7394083,0.00018323,2]
[382494036,1756647062029,-480.0,0.00018323,2]
[382494038,1756647062039,-1668.68,0.00018323,2]
[382494040,1756647062048,-480.0,0.00018323,2]
[382494042,1756647062058,-155.7561095,0.00018323,2]
[382494044,1756647062068,-480.0,0.00018323,2]
[382494046,1756647062077,-480.0,0.00018323,2]
[382494048,1756647062087,-812.35,0.00018323,2]
[382494050,1756647062097,-480.0,0.00018323,2]
[382494053,1756647062107,-480.0,0.00018323,2]
[382494055,1756647062117,-480.0,0.00018323,2]
[382494057,1756647062127,-1105.26,0.00018323,2]
[382494059,1756647062137,-480.0,0.00018323,2]
[382494061,1756647062147,-420.51214231,0.00018323,2]
[382494063,1756647062157,-880.48,0.00018323,2]
[382494065,1756647062167,-480.0,0.00018323,2]
[382494067,1756647062177,-1033.69,0.00018323,2]
[382494069,1756647062188,-480.0,0.00018323,2]
[382494071,1756647062199,-480.0,0.00018323,2]
[382494073,1756647062208,-480.0,0.00018323,2]
[382494075,1756647062218,-923.92,0.00018323,2]
[382494077,1756647062228,-555.84,0.00018323,2]
[382494079,1756647062238,-1000.0,0.00018323,2]
[382494082,1756647062247,-534.67,0.00018323,2]
[382494083,1756647062257,-480.0,0.00018323,2]
[382494086,1756647062267,-269.48133979,0.00018323,2]
[382494088,1756647062276,-480.0,0.00018323,2]
[382494090,1756647062286,-480.0,0.00018323,2]
[382494092,1756647062296,-480.0,0.00018323,2]
[382494094,1756647062305,-480.0,0.00018323,2]
[382494096,1756647062315,-480.0,0.00018323,2]
[382494098,1756647062325,-480.0,0.00018323,2]
[382494100,1756647062334,-480.0,0.00018323,2]
[382494102,1756647062344,-480.0,0.00018323,2]
[382494104,1756647062353,-480.0,0.00018323,2]
[382494106,1756647062365,-770.34,0.00018323,2]
[382494108,1756647062375,-243.52077592,0.00018323,2]
[382494110,1756647062384,-480.0,0.00018323,2]
[382494112,1756647062395,-674.02,0.00018323,2]
[382494114,1756647062405,-500.0,0.00018323,2]
[382494116,1756647062415,-198.85582042,0.00018323,2]
[382494118,1756647062426,-480.0,0.00018323,2]
[382494120,1756647062435,-586.76,0.00018323,2]
[382494122,1756647062445,-1129.79,0.00018323,2]
[382494124,1756647062456,-480.0,0.00018323,2]
[382494126,1756647062465,-2778.09,0.00018323,2]
[382494128,1756647062475,-480.0,0.00018323,2]
[382494130,1756647062484,-789.46,0.00018323,2]
[382494133,1756647062495,-1665.01,0.00018323,2]
[382494134,1756647062508,-480.0,0.00018323,2]
[382494136,1756647062519,-1587.95,0.00018323,2]
[382494138,1756647062529,-684.59,0.00018323,2]
[382494140,1756647062540,-930.35,0.00018323,2]
[382494143,1756647062551,-480.0,0.00018323,2]
[382494145,1756647062561,-1853.64,0.00018323,2]
[382494147,1756647062571,-1059.09,0.00018323,2]
[382494149,1756647062582,-480.0,0.00018323,2]
[382494151,1756647062592,-759.74,0.00018323,2]
[382494153,1756647062602,-473.10260644,0.00018323,2]
[382494155,1756647062611,-1550.77,0.00018323,2]
[382494157,1756647062620,-1492.24,0.00018323,2]
[382494159,1756647062630,-480.0,0.00018323,2]
[382494161,1756647062640,-480.0,0.00018323,2]
[382494163,1756647062649,-480.0,0.00018323,2]
[382494165,1756647062659,-480.0,0.00018323,2]
[382494167,1756647062668,-1733.66,0.00018323,2]
[382494169,1756647062678,-480.0,0.00018323,2]
[382494171,1756647062688,-480.0,0.00018323,2]
[382494173,1756647062698,-480.0,0.00018323,2]
[382494175,1756647062708,-480.0,0.00018323,2]
[382494177,1756647062717,-836.71,0.00018323,2]
[382494178,1756647062727,-480.0,0.00018323,2]
[382494179,1756647062737,-480.0,0.00018323,2]
[382494180,1756647062746,-480.0,0.00018323,2]
[382494181,1756647062756,-480.0,0.00018323,2]
[382494182,1756647062766,-480.0,0.00018323,2]
[382494183,1756647062776,-481.29,0.00018323,2]
[382494184,1756647062787,-572.28,0.00018323,2]
[382494185,1756647062797,-480.0,0.00018323,2]
[382494186,1756647062807,-1223.71,0.00018323,2]
[382494187,1756647062817,-572.76,0.00018323,2]
[382494188,1756647062827,-480.0,0.00018323,2]
[382494189,1756647062836,-607.24,0.00018323,2]
[382494190,1756647062846,-480.0,0.00018323,2]
[382494191,1756647062856,-571.99,0.00018323,2]
[382494192,1756647062866,-480.0,0.00018323,2]
[382494193,1756647062876,-519.29,0.00018323,2]
[382494194,1756647062886,-581.67,0.00018323,2]
[382494195,1756647062896,-880.48,0.00018323,2]
[382494196,1756647062905,-1753.41,0.00018323,2]
[382494197,1756647062915,-675.39,0.00018323,2]
[382494198,1756647062924,-480.0,0.00018323,2]
[382494199,1756647062934,-857.46,0.00018323,2]
[382494200,1756647062945,-480.0,0.00018323,2]
[382494201,1756647062955,-881.51,0.00018323,2]
[382494202,1756647062964,-480.0,0.00018323,2]
[382494203,1756647062974,-619.57068782,0.00018323,2]
[382494204,1756647062984,-480.0,0.00018323,2]
[382494205,1756647062993,-480.0,0.00018323,2]
[382494206,1756647063003,-480.0,0.00018323,2]
[382494207,1756647063012,-480.0,0.00018323,2]
[382494208,1756647063022,-480.0,0.00018323,2]
[382494209,1756647063032,-516.54,0.00018323,2]
[382494210,1756647063042,-480.0,0.00018323,2]
[382494211,1756647063052,-480.0,0.00018323,2]
[382494212,1756647063062,-480.0,0.00018323,2]
[382494213,1756647063072,-867.44,0.00018323,2]
[382494214,1756647063085,-537.61,0.00018323,2]
[382494215,1756647063095,-480.0,0.00018323,2]
[382494216,1756647063105,-480.0,0.00018323,2]
[382494217,1756647063116,-400.49167426,0.00018323,2]
[382494218,1756647063126,-503.8,0.00018323,2]
[382494219,1756647063136,-500.73,0.00018323,2]
[382494220,1756647063147,-1114.23,0.00018323,2]
[382494221,1756647063157,-681.14,0.00018323,2]
[382494222,1756647063167,-480.0,0.00018323,2]
[382494223,1756647063177,-480.0,0.00018323,2]
[382494224,1756647063188,-480.0,0.00018323,2]
[382494225,1756647063197,-977.55,0.00018323,2]
[382494226,1756647063207,-480.0,0.00018323,2]
[382494227,1756647063217,-480.0,0.00018323,2]
[382494228,1756647063227,-500.0,0.00018323,2]
[382494229,1756647063238,-480.0,0.00018323,2]
[382494230,1756647063248,-480.0,0.00018323,2]
[382494231,1756647063258,-480.0,0.00018323,2]
[382494232,1756647063269,-1399.32,0.00018323,2]
[382494233,1756647063279,-480.0,0.00018323,2]
[382494234,1756647063289,-1124.12,0.00018323,2]
[382494235,1756647063299,-480.0,0.00018323,2]
[382494236,1756647063309,-580.87,0.00018323,2]
[382494237,1756647063318,-480.0,0.00018323,2]
[382494238,1756647063329,-1006.32,0.00018323,2]
[382494239,1756647063339,-480.0,0.00018323,2]
[382494240,1756647063348,-480.0,0.00018323,2]
[382494241,1756647063358,-1317.7,0.00018323,2]
[382494242,1756647063368,-188.32626617,0.00018323,2]
[382494243,1756647063378,-481.47172067,0.00018323,2]
[382494244,1756647063388,-872.85,0.00018323,2]